{"text_format":"1","workbook":"xlsx","n_sheets":1,"sheets":["Timesheet"],"not_rendered":{"charts":0,"images":0,"macros":1,"external_links":0,"defined_names":2,"comments":0,"pivot_tables":0},"unopened":[],"bounds":{"document_bytes":16777216,"sheet_cells":100000,"rows_first":2000,"rows_last":500,"rows_between":2000,"halvings":0,"cell_chars":16384,"cell_head_chars":4096},"cells_cut":0,"cells_raw":0,"read":"whole","date_system":"1900"}

{"sheet":"Timesheet","index":0,"n_rows":44,"n_cols":256,"rows_kept":44,"cut":false,"hidden":false,"merged":[[26,9,26,10],[2,8,2,13],[1,2,1,6],[3,5,3,6],[4,5,4,6],[4,2,4,3],[2,2,2,6],[0,0,0,13],[22,9,22,10],[5,10,5,13],[14,9,14,10],[16,9,16,10],[17,9,17,10],[18,9,18,10],[19,9,19,10],[20,9,20,10],[21,9,21,10],[5,2,5,6],[5,7,5,8],[13,9,13,10],[3,8,3,10],[2,0,2,1],[1,8,1,13],[33,0,34,4],[35,0,35,4],[15,9,15,10],[36,0,37,4],[37,5,40,8],[33,5,36,8],[30,0,31,8],[31,10,31,13],[32,10,33,13],[35,10,36,13],[29,9,29,10],[23,9,23,10],[27,9,27,10],[28,9,28,10],[24,9,24,10],[25,9,25,10],[3,15,4,18],[9,15,11,18],[11,9,11,10],[12,9,12,10],[9,9,9,10],[10,9,10,10],[43,9,43,13],[44,5,44,8],[38,0,38,4],[39,0,39,4],[42,0,44,4],[41,0,41,4],[41,5,43,8],[40,0,40,4]]}
["Southern California Conference Hourly Time Report",null,null,null,null,null,null,null,null,null,null,null,null,null,null,null,null,null,null,null,null,null,null,null,null,null,null,null,null,null,null,null,null,null,null,null,null,null,null,null,null,null,null,null,null,null,null,null,null,null,null,null,null,null,null,null,null,null,null,null,null,null,null,null,null,null,null,null,null,null,null,null,null,null,null,null,null,null,null,null,null,null,null,null,null,null,null,null,null,null,null,null,null,null,null,null,null,null,null,null,null,null,null,null,null,null,null,null,null,null,null,null,null,null,null,null,null,null,null,null,null,null,null,null,null,null,null,null,null,null,null,null,null,null,null,null,null,null,null,null,null,null,null,null,null,null,null,null,null,null,null,null,null,null,null,null,null,null,null,null,null,null,null,null,null,null,null,null,null,null,null,null,null,null,null,null,null,null,null,null,null,null,null,null,null,null,null,null,null,null,null,null,null,null,null,null,null,null,null,null,null,null,null,null,null,null,null,null,null,null,null,null,null,null,null,null,null,null,null,null,null,null,null,null,null,null,null,null,null,null,null,null,null,null,null,null,null,null,null,null,null,null,null,null,null,null,null,null,null,null,null,null,2,{"$f":"VLOOKUP(IS1,IS2:IU28,2,FALSE)","v":"2023-12-17"},{"$f":"VLOOKUP(IS1,IS2:IU28,3,FALSE)","v":"2023-12-30"},{"$f":"VLOOKUP(IT1,IT2:IV28,3,FALSE)","v":"2023-12-29"}]
["Employee ID:",null,null,null,null,null,null,"Work Location:",null,null,null,null,null,null,null,null,null,null,null,null,null,null,null,null,null,null,null,null,null,null,null,null,null,null,null,null,null,null,null,null,null,null,null,null,null,null,null,null,null,null,null,null,null,null,null,null,null,null,null,null,null,null,null,null,null,null,null,null,null,null,null,null,null,null,null,null,null,null,null,null,null,null,null,null,null,null,null,null,null,null,null,null,null,null,null,null,null,null,null,null,null,null,null,null,null,null,null,null,null,null,null,null,null,null,null,null,null,null,null,null,null,null,null,null,null,null,null,null,null,null,null,null,null,null,null,null,null,null,null,null,null,null,null,null,null,null,null,null,null,null,null,null,null,null,null,null,null,null,null,null,null,null,null,null,null,null,null,null,null,null,null,null,null,null,null,null,null,null,null,null,null,null,null,null,null,null,null,null,null,null,null,null,null,null,null,null,null,null,null,null,null,null,null,null,null,null,null,null,null,null,null,null,null,null,null,null,null,null,null,null,null,null,null,null,null,null,null,null,null,null,null,null,null,null,null,null,null,null,null,null,null,null,null,null,null,null,null,null,null,null,null,null,1,"Choose"]
["Employee Name:",null,null,null,null,null,null,"Job Title:",null,null,null,null,null,null,null,null,null,null,null,null,null,null,null,null,null,null,null,null,null,null,null,null,null,null,null,null,null,null,null,null,null,null,null,null,null,null,null,null,null,null,null,null,null,null,null,null,null,null,null,null,null,null,null,null,null,null,null,null,null,null,null,null,null,null,null,null,null,null,null,null,null,null,null,null,null,null,null,null,null,null,null,null,null,null,null,null,null,null,null,null,null,null,null,null,null,null,null,null,null,null,null,null,null,null,null,null,null,null,null,null,null,null,null,null,null,null,null,null,null,null,null,null,null,null,null,null,null,null,null,null,null,null,null,null,null,null,null,null,null,null,null,null,null,null,null,null,null,null,null,null,null,null,null,null,null,null,null,null,null,null,null,null,null,null,null,null,null,null,null,null,null,null,null,null,null,null,null,null,null,null,null,null,null,null,null,null,null,null,null,null,null,null,null,null,null,null,null,null,null,null,null,null,null,null,null,null,null,null,null,null,null,null,null,null,null,null,null,null,null,null,null,null,null,null,null,null,null,null,null,null,null,null,null,null,null,null,null,null,null,null,null,null,2,"2023-12-17","2023-12-30","2023-12-29"]
["For Pay Period",null,null,null,"to",{"$f":"IF(IS1>1,VLOOKUP(IS1,IS2:IU28,3,FALSE),\"\")","v":"2023-12-30"},null,null,{"$f":"IV1","v":"2023-12-29"},null,null,null,null,null,null,"Click on the button above to clear this form in preparation for using it with another person and pay period.",null,null,null,null,null,null,null,null,null,null,null,null,null,null,null,null,null,null,null,null,null,null,null,null,null,null,null,null,null,null,null,null,null,null,null,null,null,null,null,null,null,null,null,null,null,null,null,null,null,null,null,null,null,null,null,null,null,null,null,null,null,null,null,null,null,null,null,null,null,null,null,null,null,null,null,null,null,null,null,null,null,null,null,null,null,null,null,null,null,null,null,null,null,null,null,null,null,null,null,null,null,null,null,null,null,null,null,null,null,null,null,null,null,null,null,null,null,null,null,null,null,null,null,null,null,null,null,null,null,null,null,null,null,null,null,null,null,null,null,null,null,null,null,null,null,null,null,null,null,null,null,null,null,null,null,null,null,null,null,null,null,null,null,null,null,null,null,null,null,null,null,null,null,null,null,null,null,null,null,null,null,null,null,null,null,null,null,null,null,null,null,null,null,null,null,null,null,null,null,null,null,null,null,null,null,null,null,null,null,null,null,null,null,null,null,null,null,null,null,null,null,null,null,null,null,null,null,null,null,null,null,null,null,null,null,null,3,"2023-12-31","2024-01-13","2024-01-12"]
[null,null,"Beginning",null,null,"Ending",null,null,"Timecards Due",null,null,null,null,null,null,null,null,null,null,null,null,null,null,null,null,null,null,null,null,null,null,null,null,null,null,null,null,null,null,null,null,null,null,null,null,null,null,null,null,null,null,null,null,null,null,null,null,null,null,null,null,null,null,null,null,null,null,null,null,null,null,null,null,null,null,null,null,null,null,null,null,null,null,null,null,null,null,null,null,null,null,null,null,null,null,null,null,null,null,null,null,null,null,null,null,null,null,null,null,null,null,null,null,null,null,null,null,null,null,null,null,null,null,null,null,null,null,null,null,null,null,null,null,null,null,null,null,null,null,null,null,null,null,null,null,null,null,null,null,null,null,null,null,null,null,null,null,null,null,null,null,null,null,null,null,null,null,null,null,null,null,null,null,null,null,null,null,null,null,null,null,null,null,null,null,null,null,null,null,null,null,null,null,null,null,null,null,null,null,null,null,null,null,null,null,null,null,null,null,null,null,null,null,null,null,null,null,null,null,null,null,null,null,null,null,null,null,null,null,null,null,null,null,null,null,null,null,null,null,null,null,null,null,null,null,null,null,null,null,null,null,null,4,"2024-01-14","2024-01-27","2024-01-29"]
["Employee Signature:",null,null,null,null,null,null,"Date Signed:",null,null,null,null,null,null,null,null,null,null,null,null,null,null,null,null,null,null,null,null,null,null,null,null,null,null,null,null,null,null,null,null,null,null,null,null,null,null,null,null,null,null,null,null,null,null,null,null,null,null,null,null,null,null,null,null,null,null,null,null,null,null,null,null,null,null,null,null,null,null,null,null,null,null,null,null,null,null,null,null,null,null,null,null,null,null,null,null,null,null,null,null,null,null,null,null,null,null,null,null,null,null,null,null,null,null,null,null,null,null,null,null,null,null,null,null,null,null,null,null,null,null,null,null,null,null,null,null,null,null,null,null,null,null,null,null,null,null,null,null,null,null,null,null,null,null,null,null,null,null,null,null,null,null,null,null,null,null,null,null,null,null,null,null,null,null,null,null,null,null,null,null,null,null,null,null,null,null,null,null,null,null,null,null,null,null,null,null,null,null,null,null,null,null,null,null,null,null,null,null,null,null,null,null,null,null,null,null,null,null,null,null,null,null,null,null,null,null,null,null,null,null,null,null,null,null,null,null,null,null,null,null,null,null,null,null,null,null,null,null,null,null,null,null,5,"2024-01-28","2024-02-10","2024-02-12"]
[null,"              ",null,null,null,null,null,null,null,null,null,null,null,null,null,null,null,null,null,null,null,null,null,null,null,null,null,null,null,null,null,null,null,null,null,null,null,null,null,null,null,null,null,null,null,null,null,null,null,null,null,null,null,null,null,null,null,null,null,null,null,null,null,null,null,null,null,null,null,null,null,null,null,null,null,null,null,null,null,null,null,null,null,null,null,null,null,null,null,null,null,null,null,null,null,null,null,null,null,null,null,null,null,null,null,null,null,null,null,null,null,null,null,null,null,null,null,null,null,null,null,null,null,null,null,null,null,null,null,null,null,null,null,null,null,null,null,null,null,null,null,null,null,null,null,null,null,null,null,null,null,null,null,null,null,null,null,null,null,null,null,null,null,null,null,null,null,null,null,null,null,null,null,null,null,null,null,null,null,null,null,null,null,null,null,null,null,null,null,null,null,null,null,null,null,null,null,null,null,null,null,null,null,null,null,null,null,null,null,null,null,null,null,null,null,null,null,null,null,null,null,null,null,null,null,null,null,null,null,null,null,null,null,null,null,null,null,null,null,null,null,null,null,null,null,null,null,null,null,null,null,null,6,"2024-02-11","2024-02-24","2024-02-26"]
["This is the period during which the work was performed.",null,null,null,null,null,null,null,null,null,null,"Overtime",null,null,null,null,null,null,null,null,null,null,null,null,null,null,null,null,null,null,null,null,null,null,null,null,null,null,null,null,null,null,null,null,null,null,null,null,null,null,null,null,null,null,null,null,null,null,null,null,null,null,null,null,null,null,null,null,null,null,null,null,null,null,null,null,null,null,null,null,null,null,null,null,null,null,null,null,null,null,null,null,null,null,null,null,null,null,null,null,null,null,null,null,null,null,null,null,null,null,null,null,null,null,null,null,null,null,null,null,null,null,null,null,null,null,null,null,null,null,null,null,null,null,null,null,null,null,null,null,null,null,null,null,null,null,null,null,null,null,null,null,null,null,null,null,null,null,null,null,null,null,null,null,null,null,null,null,null,null,null,null,null,null,null,null,null,null,null,null,null,null,null,null,null,null,null,null,null,null,null,null,null,null,null,null,null,null,null,null,null,null,null,null,null,null,null,null,null,null,null,null,null,null,null,null,null,null,null,null,null,null,null,null,null,null,null,null,null,null,null,null,null,null,null,null,null,null,null,null,null,null,null,null,null,null,null,null,null,null,null,null,7,"2024-02-25","2024-03-09","2024-03-11"]
[null,null,null,null,null,null,null,null,null,null,null,"Time ","Double","OTHER",null,null,null,null,null,null,null,null,null,null,null,null,null,null,null,null,null,null,null,null,null,null,null,null,null,null,null,null,null,null,null,null,null,null,null,null,null,null,null,null,null,null,null,null,null,null,null,null,null,null,null,null,null,null,null,null,null,null,null,null,null,null,null,null,null,null,null,null,null,null,null,null,null,null,null,null,null,null,null,null,null,null,null,null,null,null,null,null,null,null,null,null,null,null,null,null,null,null,null,null,null,null,null,null,null,null,null,null,null,null,null,null,null,null,null,null,null,null,null,null,null,null,null,null,null,null,null,null,null,null,null,null,null,null,null,null,null,null,null,null,null,null,null,null,null,null,null,null,null,null,null,null,null,null,null,null,null,null,null,null,null,null,null,null,null,null,null,null,null,null,null,null,null,null,null,null,null,null,null,null,null,null,null,null,null,null,null,null,null,null,null,null,null,null,null,null,null,null,null,null,null,null,null,null,null,null,null,null,null,null,null,null,null,null,null,null,null,null,null,null,null,null,null,null,null,null,null,null,null,null,null,null,null,null,null,null,null,null,8,"2024-03-10","2024-03-23","2024-03-25"]
["Date","Start","End","Start","End","Start","End","Start","End","Regular",null,"& A Half","Time","(Please","Lunch","Click on the button above to clear only the date submitted, date signed and the start and end time.",null,null,null,null,null,null,null,null,null,null,null,null,null,null,null,null,null,null,null,null,null,null,null,null,null,null,null,null,null,null,null,null,null,null,null,null,null,null,null,null,null,null,null,null,null,null,null,null,null,null,null,null,null,null,null,null,null,null,null,null,null,null,null,null,null,null,null,null,null,null,null,null,null,null,null,null,null,null,null,null,null,null,null,null,null,null,null,null,null,null,null,null,null,null,null,null,null,null,null,null,null,null,null,null,null,null,null,null,null,null,null,null,null,null,null,null,null,null,null,null,null,null,null,null,null,null,null,null,null,null,null,null,null,null,null,null,null,null,null,null,null,null,null,null,null,null,null,null,null,null,null,null,null,null,null,null,null,null,null,null,null,null,null,null,null,null,null,null,null,null,null,null,null,null,null,null,null,null,null,null,null,null,null,null,null,null,null,null,null,null,null,null,null,null,null,null,null,null,null,null,null,null,null,null,null,null,null,null,null,null,null,null,null,null,null,null,"7 Day","Daily","Weekly Max","Daily ","Weekly OT","Daily",null,null,null,null,null,null,null,null,null,null,null,null,null,null,9,"2024-03-24","2024-04-06","2024-04-08"]
["Worked","Time","Time","Time","Time","Time","Time","Time","Time","Hours",null,"Hours**","Hours***"," Specify )","Penalty",null,null,null,null,null,null,null,null,null,null,null,null,null,null,null,null,null,null,null,null,null,null,null,null,null,null,null,null,null,null,null,null,null,null,null,null,null,null,null,null,null,null,null,null,null,null,null,null,null,null,null,null,null,null,null,null,null,null,null,null,null,null,null,null,null,null,null,null,null,null,null,null,null,null,null,null,null,null,null,null,null,null,null,null,null,null,null,null,null,null,null,null,null,null,null,null,null,null,null,null,null,null,null,null,null,null,null,null,null,null,null,null,null,null,null,null,null,null,null,null,null,null,null,null,null,null,null,null,null,null,null,null,null,null,null,null,null,null,null,null,null,null,null,null,null,null,null,null,null,null,null,null,null,null,null,null,null,null,null,null,null,null,null,null,null,null,null,null,null,null,null,null,null,null,null,null,null,null,null,null,null,null,null,null,null,null,null,null,null,null,null,null,null,null,null,null,null,null,null,null,null,null,null,null,null,null,null,null,null,null,null,null,null,null,"Other",null,null,"Rule","Reg",null,"OT",null,"DT",null,"Total","First Hours","First Lunch","Second Hrs","Second Lunch",null,"First Meal Penalty","Short Lunch","Second Lunch","Total Lunch Penalty",null,null,null,10,"2024-04-07","2024-04-20","2024-04-22"]
[{"$f":"IF(IS1>1,VLOOKUP(IS1,IS2:IU28,2,FALSE),\"\")","v":"2023-12-17"},null,null,null,null,null,null,null,null,{"$f":"IA12","v":0},null,{"$f":"IC12","v":0},{"$f":"ID12","v":0},null,{"$f":"IO12","v":0},null,null,null,null,null,null,null,null,null,null,null,null,null,null,null,null,null,null,null,null,null,null,null,null,null,null,null,null,null,null,null,null,null,null,null,null,null,null,null,null,null,null,null,null,null,null,null,null,null,null,null,null,null,null,null,null,null,null,null,null,null,null,null,null,null,null,null,null,null,null,null,null,null,null,null,null,null,null,null,null,null,null,null,null,null,null,null,null,null,null,null,null,null,null,null,null,null,null,null,null,null,null,null,null,null,null,null,null,null,null,null,null,null,null,null,null,null,null,null,null,null,null,null,null,null,null,null,null,null,null,null,null,null,null,null,null,null,null,null,null,null,null,null,null,null,null,null,null,null,null,null,null,null,null,null,null,null,null,null,null,null,null,null,null,null,null,null,null,null,null,null,null,null,null,null,null,null,null,null,null,null,null,null,null,null,null,null,null,null,null,null,null,null,null,null,null,null,null,null,null,null,null,null,null,null,null,null,null,null,null,null,null,null,null,{"$f":"IF(ISBLANK(N12),0,1)","v":0},null,null,{"$f":"IF(NOT(HZ12=0),1,\"\")","v":""},{"$f":"IF(AND(B12>0)*(IR12>8),8,IR12)","v":0},{"$f":"HZ12","v":0},{"$f":"IF(B12>0,IF(IR12>12,4,IF(IR12>8,IR12-8,0)),0)","v":0},{"$f":"IB12","v":0},{"$f":"IF(AND(B12>0)*(IR12>12),IR12-12,0)","v":0},null,{"$f":"IF(IR12=\"\",0,IR12)","v":0},{"$f":"IF(B12>0,SUM(IF(C12=0,0,IF((+C12-B12)*24<0,(+C12-B12)*24+12,(+C12-B12)*24))),0)","v":0},{"$f":"IF(C12>0,SUM(IF(D12=0,0,IF((+D12-C12)*24<0,(+D12-C12)*24+12,(+D12-C12)*24))),0)","v":0},{"$f":"IF(D12>0,SUM(IF(E12=0,0,IF((+E12-D12)*24<0,(+E12-D12)*24+12,(+E12-D12)*24))),0)","v":0},{"$f":"IF(E12>0,SUM(IF(F12=0,0,IF((+F12-E12)*24<0,(+F12-E12)*24+12,(+F12-E12)*24))),0)","v":0},null,{"$f":"IF(IG12<5.5,0,IF(IR12<6,0,1))","v":0},{"$f":"IF(IF12<6,0,IF(IH12>0.5,0,1))","v":0},{"$f":"IF(IF12<10,0,IF(IJ12>0.5,0,1))","v":0},{"$f":"(IF(IL12+IM12+IN12>0,1,0))","v":0},null,null,{"$f":"IF(B12>0,SUM(IF(C12=0,0,IF((+C12-B12)*24<0,(+C12-B12)*24+12,(+C12-B12)*24))+IF(E12=0,0,IF((+E12-D12)*24<0,(+E12-D12)*24+12,(+E12-D12)*24))+IF(G12=0,0,IF((+G12-F12)*24<0,(+G12-F12)*24+12,(+G12-F12)*24))+IF(I12=0,0,IF((+I12-H12)*24<0,(+I12-H12)*24+12,(+I12-H12)*24))),0)","v":0},11,"2024-04-21","2024-05-04","2024-05-06"]
[{"$f":"IF(IS$1>1,A12+1,\"\")","v":"2023-12-18"},null,null,null,null,null,null,null,null,{"$f":"IA13","v":0},null,{"$f":"IC13","v":0},{"$f":"ID13","v":0},null,{"$f":"IO13","v":0},null,null,null,null,null,null,null,null,null,null,null,null,null,null,null,null,null,null,null,null,null,null,null,null,null,null,null,null,null,null,null,null,null,null,null,null,null,null,null,null,null,null,null,null,null,null,null,null,null,null,null,null,null,null,null,null,null,null,null,null,null,null,null,null,null,null,null,null,null,null,null,null,null,null,null,null,null,null,null,null,null,null,null,null,null,null,null,null,null,null,null,null,null,null,null,null,null,null,null,null,null,null,null,null,null,null,null,null,null,null,null,null,null,null,null,null,null,null,null,null,null,null,null,null,null,null,null,null,null,null,null,null,null,null,null,null,null,null,null,null,null,null,null,null,null,null,null,null,null,null,null,null,null,null,null,null,null,null,null,null,null,null,null,null,null,null,null,null,null,null,null,null,null,null,null,null,null,null,null,null,null,null,null,null,null,null,null,null,null,null,null,null,null,null,null,null,null,null,null,null,null,null,null,null,null,null,null,null,null,null,null,null,null,null,0,null,null,{"$f":"IF(NOT(HZ13=0),1,\"\")","v":""},0,{"$f":"HZ13","v":0},0,{"$f":"IB13","v":0},0,null,{"$f":"IF(IR13=\"\",0,IR13)","v":0},0,0,0,0,null,{"$f":"IF(IG13<5.5,0,IF(IR13<6,0,1))","v":0},{"$f":"IF(IF13<6,0,IF(IH13>0.5,0,1))","v":0},{"$f":"IF(IF13<10,0,IF(IJ13>0.5,0,1))","v":0},{"$f":"(IF(IL13+IM13+IN13>0,1,0))","v":0},null,null,{"$f":"IF(B13>0,SUM(IF(C13=0,0,IF((+C13-B13)*24<0,(+C13-B13)*24+12,(+C13-B13)*24))+IF(E13=0,0,IF((+E13-D13)*24<0,(+E13-D13)*24+12,(+E13-D13)*24))+IF(G13=0,0,IF((+G13-F13)*24<0,(+G13-F13)*24+12,(+G13-F13)*24))+IF(I13=0,0,IF((+I13-H13)*24<0,(+I13-H13)*24+12,(+I13-H13)*24))),0)","v":0},12,"2024-05-05","2024-05-18","2024-05-20"]
["2023-12-19",null,null,null,null,null,null,null,null,0,null,0,0,null,{"$f":"IO14","v":0},null,null,null,null,null,null,null,null,null,null,null,null,null,null,null,null,null,null,null,null,null,null,null,null,null,null,null,null,null,null,null,null,null,null,null,null,null,null,null,null,null,null,null,null,null,null,null,null,null,null,null,null,null,null,null,null,null,null,null,null,null,null,null,null,null,null,null,null,null,null,null,null,null,null,null,null,null,null,null,null,null,null,null,null,null,null,null,null,null,null,null,null,null,null,null,null,null,null,null,null,null,null,null,null,null,null,null,null,null,null,null,null,null,null,null,null,null,null,null,null,null,null,null,null,null,null,null,null,null,null,null,null,null,null,null,null,null,null,null,null,null,null,null,null,null,null,null,null,null,null,null,null,null,null,null,null,null,null,null,null,null,null,null,null,null,null,null,null,null,null,null,null,null,null,null,null,null,null,null,null,null,null,null,null,null,null,null,null,null,null,null,null,null,null,null,null,null,null,null,null,null,null,null,null,null,null,null,null,null,null,null,null,null,null,0,null,null,"",0,{"$f":"HZ14","v":0},0,{"$f":"IB14","v":0},0,null,0,0,0,0,0,null,0,0,0,0,null,null,0,13,"2024-05-19","2024-06-01","2024-06-03"]
["2023-12-20",null,null,null,null,null,null,null,null,0,null,0,0,null,0,null,null,null,null,null,null,null,null,null,null,null,null,null,null,null,null,null,null,null,null,null,null,null,null,null,null,null,null,null,null,null,null,null,null,null,null,null,null,null,null,null,null,null,null,null,null,null,null,null,null,null,null,null,null,null,null,null,null,null,null,null,null,null,null,null,null,null,null,null,null,null,null,null,null,null,null,null,null,null,null,null,null,null,null,null,null,null,null,null,null,null,null,null,null,null,null,null,null,null,null,null,null,null,null,null,null,null,null,null,null,null,null,null,null,null,null,null,null,null,null,null,null,null,null,null,null,null,null,null,null,null,null,null,null,null,null,null,null,null,null,null,null,null,null,null,null,null,null,null,null,null,null,null,null,null,null,null,null,null,null,null,null,null,null,null,null,null,null,null,null,null,null,null,null,null,null,null,null,null,null,null,null,null,null,null,null,null,null,null,null,null,null,null,null,null,null,null,null,null,null,null,null,null,null,null,null,null,null,null,null,null,null,null,null,0,null,null,"",0,{"$f":"HZ15","v":0},0,{"$f":"IB15","v":0},0,null,0,0,0,0,0,null,0,0,0,0,null,null,0,14,"2024-06-02","2024-06-15","2024-06-17"]
["2023-12-21",null,null,null,null,null,null,null,null,0,null,0,0,null,0,null,null,null,null,null,null,null,null,null,null,null,null,null,null,null,null,null,null,null,null,null,null,null,null,null,null,null,null,null,null,null,null,null,null,null,null,null,null,null,null,null,null,null,null,null,null,null,null,null,null,null,null,null,null,null,null,null,null,null,null,null,null,null,null,null,null,null,null,null,null,null,null,null,null,null,null,null,null,null,null,null,null,null,null,null,null,null,null,null,null,null,null,null,null,null,null,null,null,null,null,null,null,null,null,null,null,null,null,null,null,null,null,null,null,null,null,null,null,null,null,null,null,null,null,null,null,null,null,null,null,null,null,null,null,null,null,null,null,null,null,null,null,null,null,null,null,null,null,null,null,null,null,null,null,null,null,null,null,null,null,null,null,null,null,null,null,null,null,null,null,null,null,null,null,null,null,null,null,null,null,null,null,null,null,null,null,null,null,null,null,null,null,null,null,null,null,null,null,null,null,null,null,null,null,null,null,null,null,null,null,null,null,null,null,0,null,null,"",0,{"$f":"HZ16","v":0},0,{"$f":"IB16","v":0},0,null,0,0,0,0,0,null,0,0,0,0,null,null,0,15,"2024-06-16","2024-06-29","2024-06-28"]
["2023-12-22",null,null,null,null,null,null,null,null,0,null,0,0,null,0,null,null,null,null,null,null,null,null,null,null,null,null,null,null,null,null,null,null,null,null,null,null,null,null,null,null,null,null,null,null,null,null,null,null,null,null,null,null,null,null,null,null,null,null,null,null,null,null,null,null,null,null,null,null,null,null,null,null,null,null,null,null,null,null,null,null,null,null,null,null,null,null,null,null,null,null,null,null,null,null,null,null,null,null,null,null,null,null,null,null,null,null,null,null,null,null,null,null,null,null,null,null,null,null,null,null,null,null,null,null,null,null,null,null,null,null,null,null,null,null,null,null,null,null,null,null,null,null,null,null,null,null,null,null,null,null,null,null,null,null,null,null,null,null,null,null,null,null,null,null,null,null,null,null,null,null,null,null,null,null,null,null,null,null,null,null,null,null,null,null,null,null,null,null,null,null,null,null,null,null,null,null,null,null,null,null,null,null,null,null,null,null,null,null,null,null,null,null,null,null,null,null,null,null,null,null,null,null,null,null,null,null,null,null,0,null,null,"",0,{"$f":"IF(SUM(HZ12:HZ17)<=40,HZ17,IF(SUM(HZ12:HZ16)>=40,0,(40-SUM(HZ12:HZ16))))","v":0},0,{"$f":"IF(SUM(HZ12:HZ17)<40,IB17,(SUM(HZ12:HZ17)-40+IB17))","v":0},0,null,0,0,0,0,0,null,0,0,0,0,null,null,0,16,"2024-06-30","2024-07-13","2024-07-15"]
["2023-12-23",null,null,null,null,null,null,null,null,0,null,0,0,null,0,null,null,null,null,null,null,null,null,null,null,null,null,null,null,null,null,null,null,null,null,null,null,null,null,null,null,null,null,null,null,null,null,null,null,null,null,null,null,null,null,null,null,null,null,null,null,null,null,null,null,null,null,null,null,null,null,null,null,null,null,null,null,null,null,null,null,null,null,null,null,null,null,null,null,null,null,null,null,null,null,null,null,null,null,null,null,null,null,null,null,null,null,null,null,null,null,null,null,null,null,null,null,null,null,null,null,null,null,null,null,null,null,null,null,null,null,null,null,null,null,null,null,null,null,null,null,null,null,null,null,null,null,null,null,null,null,null,null,null,null,null,null,null,null,null,null,null,null,null,null,null,null,null,null,null,null,null,null,null,null,null,null,null,null,null,null,null,null,null,null,null,null,null,null,null,null,null,null,null,null,null,null,null,null,null,null,null,null,null,null,null,null,null,null,null,null,null,null,null,null,null,null,null,null,null,null,null,null,null,null,null,null,null,null,0,null,null,"",0,{"$f":"IF(SUM(HY12:HY18)=7,0,IF(SUM(HZ12:HZ18)<=40,HZ18,IF(SUM(HZ12:HZ17)>=40,0,(40-SUM(HZ12:HZ17)))))","v":0},{"$f":"IF(SUM(HY12:HY18)=7,IF(IF18>8,8,IF18),IF(B18>0,IF(IR18>12,4,IF(IR18>8,IR18-8,0)),0))","v":0},{"$f":"IF(SUM(HY12:HY18)=7,IB18,IF(SUM(HZ12:HZ18)<=40,IB18,(SUM(HZ12:HZ18)-40-IC17+IB17+IB18)))","v":0},{"$f":"IF(SUM(HY12:HY18)=7,IF(IF18>8,IF18-8,0),IF(AND(B18>0)*(IR18>12),IR18-12,0))","v":0},null,0,0,0,0,0,null,0,0,0,0,null,null,0,17,"2024-07-14","2024-07-27","2024-07-29"]
[null,null,null,null,null,null,null,null,null,{"$f":"SUM(J12:J18)","v":0},0,{"$f":"SUM(L12:L18)","v":0},{"$f":"SUM(M12:M18)","v":0},null,{"$f":"SUM(O12:O18)","v":0},null,null,null,null,null,null,null,null,null,null,null,null,null,null,null,null,null,null,null,null,null,null,null,null,null,null,null,null,null,null,null,null,null,null,null,null,null,null,null,null,null,null,null,null,null,null,null,null,null,null,null,null,null,null,null,null,null,null,null,null,null,null,null,null,null,null,null,null,null,null,null,null,null,null,null,null,null,null,null,null,null,null,null,null,null,null,null,null,null,null,null,null,null,null,null,null,null,null,null,null,null,null,null,null,null,null,null,null,null,null,null,null,null,null,null,null,null,null,null,null,null,null,null,null,null,null,null,null,null,null,null,null,null,null,null,null,null,null,null,null,null,null,null,null,null,null,null,null,null,null,null,null,null,null,null,null,null,null,null,null,null,null,null,null,null,null,null,null,null,null,null,null,null,null,null,null,null,null,null,null,null,null,null,null,null,null,null,null,null,null,null,null,null,null,null,null,null,null,null,null,null,null,null,null,null,null,null,null,null,null,null,null,null,null,0,null,null,null,0,null,null,null,null,null,0,0,0,0,0,null,0,0,0,0,null,null,0,18,"2024-07-28","2024-08-10","2024-08-12"]
[null,null,null,null,null,null,null,null,null,null,null,null,null,null,null,null,null,null,null,null,null,null,null,null,null,null,null,null,null,null,null,null,null,null,null,null,null,null,null,null,null,null,null,null,null,null,null,null,null,null,null,null,null,null,null,null,null,null,null,null,null,null,null,null,null,null,null,null,null,null,null,null,null,null,null,null,null,null,null,null,null,null,null,null,null,null,null,null,null,null,null,null,null,null,null,null,null,null,null,null,null,null,null,null,null,null,null,null,null,null,null,null,null,null,null,null,null,null,null,null,null,null,null,null,null,null,null,null,null,null,null,null,null,null,null,null,null,null,null,null,null,null,null,null,null,null,null,null,null,null,null,null,null,null,null,null,null,null,null,null,null,null,null,null,null,null,null,null,null,null,null,null,null,null,null,null,null,null,null,null,null,null,null,null,null,null,null,null,null,null,null,null,null,null,null,null,null,null,null,null,null,null,null,null,null,null,null,null,null,null,null,null,null,null,null,null,null,null,null,null,null,null,null,null,null,null,null,null,null,0,null,null,null,0,null,{"$f":"IF(B20>0,IF(IR20>12,4,IF(IR20>8,IR20-8,\"\")),\"\")","v":""},null,{"$f":"IF(AND(B20>0)*(IR20>12),IR20-12,\"\")","v":""},null,0,0,0,0,0,null,0,0,0,0,null,null,0,19,"2024-08-11","2024-08-24","2024-08-26"]
[{"$f":"IF(IS$1>1,A18+1,\"\")","v":"2023-12-24"},null,null,null,null,null,null,null,null,{"$f":"IA21","v":0},null,{"$f":"IC21","v":0},{"$f":"ID21","v":0},null,{"$f":"IO21","v":0},null,null,null,null,null,null,null,null,null,null,null,null,null,null,null,null,null,null,null,null,null,null,null,null,null,null,null,null,null,null,null,null,null,null,null,null,null,null,null,null,null,null,null,null,null,null,null,null,null,null,null,null,null,null,null,null,null,null,null,null,null,null,null,null,null,null,null,null,null,null,null,null,null,null,null,null,null,null,null,null,null,null,null,null,null,null,null,null,null,null,null,null,null,null,null,null,null,null,null,null,null,null,null,null,null,null,null,null,null,null,null,null,null,null,null,null,null,null,null,null,null,null,null,null,null,null,null,null,null,null,null,null,null,null,null,null,null,null,null,null,null,null,null,null,null,null,null,null,null,null,null,null,null,null,null,null,null,null,null,null,null,null,null,null,null,null,null,null,null,null,null,null,null,null,null,null,null,null,null,null,null,null,null,null,null,null,null,null,null,null,null,null,null,null,null,null,null,null,null,null,null,null,null,null,null,null,null,null,null,null,null,null,null,null,0,null,null,{"$f":"IF(NOT(HZ21=0),1,\"\")","v":""},0,{"$f":"HZ21","v":0},{"$f":"IF(B21>0,IF(IR21>12,4,IF(IR21>8,IR21-8,0)),0)","v":0},{"$f":"IB21","v":0},{"$f":"IF(AND(B21>0)*(IR21>12),IR21-12,0)","v":0},null,0,0,0,0,0,null,0,0,0,0,null,null,0,20,"2024-08-25","2024-09-07","2024-09-09"]
[{"$f":"IF(IS$1>1,A21+1,\"\")","v":"2023-12-25"},null,null,null,null,null,null,null,null,{"$f":"IA22","v":0},null,{"$f":"IC22","v":0},{"$f":"ID22","v":0},null,0,null,null,null,null,null,null,null,null,null,null,null,null,null,null,null,null,null,null,null,null,null,null,null,null,null,null,null,null,null,null,null,null,null,null,null,null,null,null,null,null,null,null,null,null,null,null,null,null,null,null,null,null,null,null,null,null,null,null,null,null,null,null,null,null,null,null,null,null,null,null,null,null,null,null,null,null,null,null,null,null,null,null,null,null,null,null,null,null,null,null,null,null,null,null,null,null,null,null,null,null,null,null,null,null,null,null,null,null,null,null,null,null,null,null,null,null,null,null,null,null,null,null,null,null,null,null,null,null,null,null,null,null,null,null,null,null,null,null,null,null,null,null,null,null,null,null,null,null,null,null,null,null,null,null,null,null,null,null,null,null,null,null,null,null,null,null,null,null,null,null,null,null,null,null,null,null,null,null,null,null,null,null,null,null,null,null,null,null,null,null,null,null,null,null,null,null,null,null,null,null,null,null,null,null,null,null,null,null,null,null,null,null,null,null,0,null,null,"",0,{"$f":"HZ22","v":0},0,{"$f":"IB22","v":0},0,null,0,0,0,0,0,null,0,0,0,0,null,null,0,21,"2024-09-08","2024-09-21","2024-09-23"]
[{"$f":"IF(IS$1>1,A22+1,\"\")","v":"2023-12-26"},null,null,null,null,null,null,null,null,0,null,0,0,null,0,null,null,null,null,null,null,null,null,null,null,null,null,null,null,null,null,null,null,null,null,null,null,null,null,null,null,null,null,null,null,null,null,null,null,null,null,null,null,null,null,null,null,null,null,null,null,null,null,null,null,null,null,null,null,null,null,null,null,null,null,null,null,null,null,null,null,null,null,null,null,null,null,null,null,null,null,null,null,null,null,null,null,null,null,null,null,null,null,null,null,null,null,null,null,null,null,null,null,null,null,null,null,null,null,null,null,null,null,null,null,null,null,null,null,null,null,null,null,null,null,null,null,null,null,null,null,null,null,null,null,null,null,null,null,null,null,null,null,null,null,null,null,null,null,null,null,null,null,null,null,null,null,null,null,null,null,null,null,null,null,null,null,null,null,null,null,null,null,null,null,null,null,null,null,null,null,null,null,null,null,null,null,null,null,null,null,null,null,null,null,null,null,null,null,null,null,null,null,null,null,null,null,null,null,null,null,null,null,null,null,null,null,null,null,0,null,null,"",0,{"$f":"HZ23","v":0},0,{"$f":"IB23","v":0},0,null,0,0,0,0,0,null,0,0,0,0,null,null,0,22,"2024-09-22","2024-10-05","2024-10-07"]
[{"$f":"IF(IS$1>1,A23+1,\"\")","v":"2023-12-27"},null,null,null,null,null,null,null,null,0,null,0,0,null,0,null,null,null,null,null,null,null,null,null,null,null,null,null,null,null,null,null,null,null,null,null,null,null,null,null,null,null,null,null,null,null,null,null,null,null,null,null,null,null,null,null,null,null,null,null,null,null,null,null,null,null,null,null,null,null,null,null,null,null,null,null,null,null,null,null,null,null,null,null,null,null,null,null,null,null,null,null,null,null,null,null,null,null,null,null,null,null,null,null,null,null,null,null,null,null,null,null,null,null,null,null,null,null,null,null,null,null,null,null,null,null,null,null,null,null,null,null,null,null,null,null,null,null,null,null,null,null,null,null,null,null,null,null,null,null,null,null,null,null,null,null,null,null,null,null,null,null,null,null,null,null,null,null,null,null,null,null,null,null,null,null,null,null,null,null,null,null,null,null,null,null,null,null,null,null,null,null,null,null,null,null,null,null,null,null,null,null,null,null,null,null,null,null,null,null,null,null,null,null,null,null,null,null,null,null,null,null,null,null,null,null,null,null,null,0,null,null,"",0,{"$f":"HZ24","v":0},0,{"$f":"IB24","v":0},0,null,0,0,0,0,0,null,0,0,0,0,null,null,0,23,"2024-10-06","2024-10-19","2024-10-21"]
[{"$f":"IF(AND(A24>IT$1,A24<IU$1),A24+1,\"\")","v":"2023-12-28"},null,null,null,null,null,null,null,null,0,null,0,0,null,0,null,null,null,null,null,null,null,null,null,null,null,null,null,null,null,null,null,null,null,null,null,null,null,null,null,null,null,null,null,null,null,null,null,null,null,null,null,null,null,null,null,null,null,null,null,null,null,null,null,null,null,null,null,null,null,null,null,null,null,null,null,null,null,null,null,null,null,null,null,null,null,null,null,null,null,null,null,null,null,null,null,null,null,null,null,null,null,null,null,null,null,null,null,null,null,null,null,null,null,null,null,null,null,null,null,null,null,null,null,null,null,null,null,null,null,null,null,null,null,null,null,null,null,null,null,null,null,null,null,null,null,null,null,null,null,null,null,null,null,null,null,null,null,null,null,null,null,null,null,null,null,null,null,null,null,null,null,null,null,null,null,null,null,null,null,null,null,null,null,null,null,null,null,null,null,null,null,null,null,null,null,null,null,null,null,null,null,null,null,null,null,null,null,null,null,null,null,null,null,null,null,null,null,null,null,null,null,null,null,null,null,null,null,null,0,null,null,"",0,{"$f":"HZ25","v":0},0,{"$f":"IB25","v":0},0,null,0,0,0,0,0,null,0,0,0,0,null,null,0,24,"2024-10-20","2024-11-02","2024-11-04"]
[{"$f":"IF(AND(A25>IT$1,A25<IU$1),A25+1,\"\")","v":"2023-12-29"},null,null,null,null,null,null,null,null,0,null,0,0,null,0,null,null,null,null,null,null,null,null,null,null,null,null,null,null,null,null,null,null,null,null,null,null,null,null,null,null,null,null,null,null,null,null,null,null,null,null,null,null,null,null,null,null,null,null,null,null,null,null,null,null,null,null,null,null,null,null,null,null,null,null,null,null,null,null,null,null,null,null,null,null,null,null,null,null,null,null,null,null,null,null,null,null,null,null,null,null,null,null,null,null,null,null,null,null,null,null,null,null,null,null,null,null,null,null,null,null,null,null,null,null,null,null,null,null,null,null,null,null,null,null,null,null,null,null,null,null,null,null,null,null,null,null,null,null,null,null,null,null,null,null,null,null,null,null,null,null,null,null,null,null,null,null,null,null,null,null,null,null,null,null,null,null,null,null,null,null,null,null,null,null,null,null,null,null,null,null,null,null,null,null,null,null,null,null,null,null,null,null,null,null,null,null,null,null,null,null,null,null,null,null,null,null,null,null,null,null,null,null,null,null,null,null,null,null,0,null,null,"",0,{"$f":"IF(SUM(HZ21:HZ26)<=40,HZ26,IF(SUM(HZ21:HZ25)>=40,0,(40-SUM(HZ21:HZ25))))","v":0},0,{"$f":"IF(SUM(HZ21:HZ26)<40,IB26,(SUM(HZ21:HZ26)-40+IB26))","v":0},0,null,0,0,0,0,0,null,0,0,0,0,null,null,0,25,"2024-11-03","2024-11-16","2024-11-18"]
[{"$f":"IF(AND(A26>IT$1,A26<IU$1),A26+1,\"\")","v":"2023-12-30"},null,null,null,null,null,null,null,null,0,null,0,0,null,0,null,null,null,null,null,null,null,null,null,null,null,null,null,null,null,null,null,null,null,null,null,null,null,null,null,null,null,null,null,null,null,null,null,null,null,null,null,null,null,null,null,null,null,null,null,null,null,null,null,null,null,null,null,null,null,null,null,null,null,null,null,null,null,null,null,null,null,null,null,null,null,null,null,null,null,null,null,null,null,null,null,null,null,null,null,null,null,null,null,null,null,null,null,null,null,null,null,null,null,null,null,null,null,null,null,null,null,null,null,null,null,null,null,null,null,null,null,null,null,null,null,null,null,null,null,null,null,null,null,null,null,null,null,null,null,null,null,null,null,null,null,null,null,null,null,null,null,null,null,null,null,null,null,null,null,null,null,null,null,null,null,null,null,null,null,null,null,null,null,null,null,null,null,null,null,null,null,null,null,null,null,null,null,null,null,null,null,null,null,null,null,null,null,null,null,null,null,null,null,null,null,null,null,null,null,null,null,null,null,null,null,null,null,null,0,null,null,"",0,{"$f":"IF(SUM(HY21:HY27)=7,0,IF(SUM(HZ21:HZ27)<=40,HZ27,IF(SUM(HZ21:HZ26)>=40,0,(40-SUM(HZ21:HZ26)))))","v":0},{"$f":"IF(SUM(HY21:HY27)=7,IF(IF27>8,8,IF27),IF(B27>0,IF(IR27>12,4,IF(IR27>8,IR27-8,0)),0))","v":0},{"$f":"IF(SUM(HY21:HY27)=7,IB27,IF(SUM(HZ21:HZ27)<=40,IB27,(SUM(HZ21:HZ27)-40-IC26+IB26+IB27)))","v":0},{"$f":"IF(SUM(HY21:HY27)=7,IF(IF27>8,IF27-8,0),IF(AND(B27>0)*(IR27>12),IR27-12,0))","v":0},null,0,0,0,0,0,null,0,0,0,0,null,null,0,26,"2024-11-17","2024-11-30","2024-12-02"]
[{"$f":"IF(AND(A27>IT$1,A27<IU$1),A27+1,\"\")","v":""},null,null,null,null,null,null,null,null,{"$f":"SUM(J21:J27)","v":0},{"$f":"SUM(K21:K27)","v":0},{"$f":"SUM(L21:L27)","v":0},{"$f":"SUM(M21:M27)","v":0},null,{"$f":"SUM(O21:O27)","v":0},null,null,null,null,null,null,null,null,null,null,null,null,null,null,null,null,null,null,null,null,null,null,null,null,null,null,null,null,null,null,null,null,null,null,null,null,null,null,null,null,null,null,null,null,null,null,null,null,null,null,null,null,null,null,null,null,null,null,null,null,null,null,null,null,null,null,null,null,null,null,null,null,null,null,null,null,null,null,null,null,null,null,null,null,null,null,null,null,null,null,null,null,null,null,null,null,null,null,null,null,null,null,null,null,null,null,null,null,null,null,null,null,null,null,null,null,null,null,null,null,null,null,null,null,null,null,null,null,null,null,null,null,null,null,null,null,null,null,null,null,null,null,null,null,null,null,null,null,null,null,null,null,null,null,null,null,null,null,null,null,null,null,null,null,null,null,null,null,null,null,null,null,null,null,null,null,null,null,null,null,null,null,null,null,null,null,null,null,null,null,null,null,null,null,null,null,null,null,null,null,null,null,null,null,null,null,null,null,null,null,null,null,null,null,0,null,null,null,0,null,null,null,null,null,0,0,0,0,0,null,0,0,0,0,null,null,0,27,"2024-12-01","2024-12-14","2024-12-16"]
[{"$f":"IF(AND(A28>IT$1,A28<IU$1),A28+1,\"\")","v":""},null,null,null,null,null,null,null,null,null,null,null,null,null,null,null,null,null,null,null,null,null,null,null,null,null,null,null,null,null,null,null,null,null,null,null,null,null,null,null,null,null,null,null,null,null,null,null,null,null,null,null,null,null,null,null,null,null,null,null,null,null,null,null,null,null,null,null,null,null,null,null,null,null,null,null,null,null,null,null,null,null,null,null,null,null,null,null,null,null,null,null,null,null,null,null,null,null,null,null,null,null,null,null,null,null,null,null,null,null,null,null,null,null,null,null,null,null,null,null,null,null,null,null,null,null,null,null,null,null,null,null,null,null,null,null,null,null,null,null,null,null,null,null,null,null,null,null,null,null,null,null,null,null,null,null,null,null,null,null,null,null,null,null,null,null,null,null,null,null,null,null,null,null,null,null,null,null,null,null,null,null,null,null,null,null,null,null,null,null,null,null,null,null,null,null,null,null,null,null,null,null,null,null,null,null,null,null,null,null,null,null,null,null,null,null,null,null,null,null,null,null,null,null,null,null,null,null,null,0,null,null,null,0,null,{"$f":"IF(B29>0,IF(IR29>12,4,IF(IR29>8,IR29-8,\"\")),\"\")","v":""},null,{"$f":"IF(AND(B29>0)*(IR29>12),IR29-12,\"\")","v":""},null,0,0,0,0,0,null,0,0,0,0,null,null,0]
[null,null,null,null,null,null,null,null,"Totals",{"$f":"J19+J28","v":0},null,{"$f":"L19+L28","v":0},{"$f":"M28+M19","v":0},{"$f":"HV30","v":0},{"$f":"O19+O28","v":0},null,null,null,null,null,null,null,null,null,null,null,null,null,null,null,null,null,null,null,null,null,null,null,null,null,null,null,null,null,null,null,null,null,null,null,null,null,null,null,null,null,null,null,null,null,null,null,null,null,null,null,null,null,null,null,null,null,null,null,null,null,null,null,null,null,null,null,null,null,null,null,null,null,null,null,null,null,null,null,null,null,null,null,null,null,null,null,null,null,null,null,null,null,null,null,null,null,null,null,null,null,null,null,null,null,null,null,null,null,null,null,null,null,null,null,null,null,null,null,null,null,null,null,null,null,null,null,null,null,null,null,null,null,null,null,null,null,null,null,null,null,null,null,null,null,null,null,null,null,null,null,null,null,null,null,null,null,null,null,null,null,null,null,null,null,null,null,null,null,null,null,null,null,null,null,null,null,null,null,null,null,null,null,null,null,null,null,null,null,null,null,null,null,null,null,null,null,null,null,null,null,null,null,null,null,null,null,null,null,null,null,null,null,null,{"$f":"SUM(HV12:HV29)","v":0}]
["Instructions"]
[]
[]
["Employee: Fill in dates worked, start time and end time for each work period. Type your name and the date you verify on this form.",null,null,null,null,"* Hours must be entered in military time.   **Overtime is hours over 8 and up to 12 in one day and hours over 40 in one week. Hours worked on the seventh consecutive day of the work week are also consider overtime."]
[null,null,null,null,null,null,null,null,null,"Signature of Pastor, Treasurer, or Director"]
["Location Official:"]
["1.  Fill in the location name, date submitted and pay period beginning and ending dates."]
[null,null,null,null,null,"***Double time hours are hours worked over 12 hours in one day and the hours over 8 worked on the seventh consecutive day of the work week.                      ",null,null,null,"Date Signed"]
["2.  Verify hours worked."]
["3.  Fill in employee name, ID number and job title."]
["4.  Type your name and date on the Signature line and"]
["   email it to payroll@sccsda.org.",null,null,null,null,"**** Other: Please specify if you are requesting Vaction, Holiday or Sick hours.              V=Vacation    S=Sick    H=Holiday                                                   If requesting Jury hours provide \"Jury Service Notice\".  If requesting bereavement leave, contact HR for authorization prior to requesting hours. "]
["Note: New employees must complete all employment paperwork with Human Resources before starting work.                                DO NOT begin work until all paperwork is cleared.                    If you have questions about your paperwork contact: hr@sccsda.org. "]
[null,null,null,null,null,null,null,null,null,"Revised 12/13/2023"]